fUST/lending_fUST_20251004
["ID","MTS","AMOUNT","RATE_DAILY","PERIOD"]
[389113945,1759582257061,-377.804729,0.00019726,2]
[389113947,1759582257070,-2432.08,0.00019726,2]
[389113949,1759582257080,-500.0,0.00019726,2]
[389113951,1759582257090,-421.910071,0.00019726,2]
[389113953,1759582257099,-500.0,0.00019726,2]
[389113955,1759582257109,-421.910071,0.00019726,2]
[389113957,1759582257118,-151.0,0.00019726,2]
[389113959,1759582257128,-421.910071,0.00019726,2]
[389113961,1759582257137,-151.0,0.00019726,2]
[389113963,1759582257147,-377.804729,0.00019726,2]
[389113965,1759582257156,-421.910071,0.00019726,2]
[389113967,1759582257167,-151.0,0.00019726,2]
[389113969,1759582257176,-744.57,0.00019726,2]
[389113971,1759582257185,-500.0,0.00019726,2]
[389113973,1759582257195,-500.0,0.00019726,2]
[389113975,1759582257205,-500.0,0.00019726,2]
[389113977,1759582257214,-500.0,0.00019726,2]
[389113979,1759582257224,-151.0,0.00019726,2]
[389113981,1759582257233,-500.0,0.00019726,2]
[389113983,1759582257242,-151.0,0.00019726,2]
[389113985,1759582257251,-151.0,0.00019726,2]
[389113987,1759582257260,-151.0,0.00019726,2]
[389113989,1759582257270,-500.0,0.00019726,2]
[389113991,1759582257279,-151.0,0.00019726,2]
[389113993,1759582257289,-500.0,0.00019726,2]
[389113995,1759582257298,-500.0,0.00019726,2]
[389113997,1759582257307,-500.0,0.00019726,2]
[389113999,1759582257316,-1100.8,0.00019726,2]
[389114001,1759582257325,-500.0,0.00019726,2]
[389114003,1759582257335,-500.0,0.00019726,2]
[389114005,1759582257344,-500.0,0.00019726,2]
[389114007,1759582257353,-1468.58,0.00019726,2]
[389114009,1759582257362,-151.0,0.00019726,2]
[389114011,1759582257371,-500.0,0.00019726,2]
[389114013,1759582257380,-500.0,0.00019726,2]
[389114015,1759582257390,-151.0,0.00019726,2]
[389114017,1759582257400,-151.0,0.00019726,2]
[389114019,1759582257409,-500.0,0.00019726,2]
[389114021,1759582257418,-500.0,0.00019726,2]
[389114023,1759582257428,-500.0,0.00019726,2]
[389114025,1759582257436,-500.0,0.00019726,2]
[389114027,1759582257446,-1277.48,0.00019726,2]
[389114029,1759582257457,-500.0,0.00019726,2]
[389114031,1759582257466,-500.0,0.00019726,2]
[389114033,1759582257476,-785.41,0.00019726,2]
[389114035,1759582257485,-751.7,0.00019726,2]
[389114037,1759582257494,-500.0,0.00019726,2]
[389114039,1759582257503,-500.0,0.00019726,2]
[389114041,1759582257511,-692.47,0.00019726,2]
[389114043,1759582257520,-500.0,0.00019726,2]
[389114045,1759582257529,-151.0,0.00019726,2]
[389114047,1759582257538,-500.0,0.00019726,2]
[389114049,1759582257547,-500.0,0.00019726,2]
[389114051,1759582257556,-500.0,0.00019726,2]
[389114053,1759582257565,-151.0,0.00019726,2]
[389114055,1759582257574,-558.308136,0.00019726,2]
[389114057,1759582257583,-500.0,0.00019726,2]
[389114059,1759582257592,-151.0,0.00019726,2]
[389114061,1759582257602,-500.0,0.00019726,2]
[389114063,1759582257612,-558.308136,0.00019726,2]
[389114065,1759582257622,-500.0,0.00019726,2]
[389114066,1759582257632,-151.0,0.00019726,2]
[389114068,1759582257641,-558.308136,0.00019726,2]
[389114070,1759582257651,-153.613744,0.00019726,2]
[389114072,1759582257660,-558.308136,0.00019726,2]
[389114074,1759582257671,-500.0,0.00019726,2]
[389114076,1759582257680,-151.0,0.00019726,2]
[389114078,1759582257690,-1597.27,0.00019726,2]
[389114080,1759582257703,-549.33,0.00019726,2]
[389114083,1759582257713,-151.0,0.00019726,2]
[389114084,1759582257723,-151.0,0.00019726,2]
[389114086,1759582257732,-500.0,0.00019726,2]
[389114089,1759582257743,-500.0,0.00019726,2]
[389114091,1759582257754,-151.0,0.00019726,2]
[389114093,1759582257763,-1444.29,0.00019726,2]
[389114095,1759582257773,-762.96,0.00019726,2]
[389114096,1759582257782,-268.265395,0.00019726,2]
[389114098,1759582257792,-151.0,0.00019726,2]
[389114100,1759582257801,-3987.82,0.00019726,2]
[389114102,1759582257811,-500.0,0.00019726,2]
[389114104,1759582257820,-2704.0,0.00019726,2]
[389114106,1759582257829,-210.206214,0.00019726,2]
[389114108,1759582257838,-210.206214,0.00019726,2]
[389114110,1759582257847,-899.46,0.00019726,2]
[389114112,1759582257857,-210.206214,0.00019726,2]
[389114114,1759582257866,-500.0,0.00019726,2]
[389114116,1759582257875,-151.0,0.00019726,2]
[389114118,1759582257885,-210.206214,0.00019726,2]
[389114119,1759582257894,-500.0,0.00019726,2]
[389114120,1759582257903,-1061.231118,0.00019726,2]
[389114121,1759582257912,-1061.231118,0.00019726,2]
[389114122,1759582257922,-500.0,0.00019726,2]
[389114123,1759582257931,-1061.231118,0.00019726,2]
[389114124,1759582257940,-500.0,0.00019726,2]
[389114125,1759582257950,-232.342074,0.00019726,2]
[389114126,1759582257959,-1061.231118,0.00019726,2]
[389114127,1759582257969,-889.58,0.00019726,2]
[389114128,1759582257983,-500.0,0.00019726,2]
[389114129,1759582257992,-232.342074,0.00019726,2]
[389114130,1759582258001,-500.0,0.00019726,2]
[389114131,1759582258010,-500.0,0.00019726,2]
[389114132,1759582258020,-970.24,0.00019726,2]
[389114133,1759582258029,-232.342074,0.00019726,2]
[389114134,1759582258038,-890.79,0.00019726,2]
[389114135,1759582258047,-500.0,0.00019726,2]
[389114136,1759582258056,-560.22,0.00019726,2]
[389114137,1759582258065,-232.342074,0.00019726,2]
[389114139,1759582258075,-500.0,0.00019726,2]
[389114140,1759582258084,-509.79,0.00019726,2]
[389114142,1759582258092,-500.0,0.00019726,2]
[389114144,1759582258101,-850.99,0.00019726,2]
[389114146,1759582258111,-1111.72,0.00019726,2]
[389114148,1759582258119,-500.0,0.00019726,2]
[389114150,1759582258131,-752.66,0.00019726,2]
[389114152,1759582258140,-633.91,0.00019726,2]
[389114154,1759582258149,-1046.13,0.00019726,2]
[389114156,1759582258158,-2794.99,0.00019726,2]
[389114158,1759582258167,-500.0,0.00019726,2]
[389114160,1759582258175,-1659.91,0.00019726,2]
[389114162,1759582258184,-500.0,0.00019726,2]
[389114164,1759582258192,-500.0,0.00019726,2]
[389114166,1759582258202,-991.41,0.00019726,2]
[389114168,1759582258212,-500.0,0.00019726,2]
[389114170,1759582258222,-500.0,0.00019726,2]
[389114172,1759582258231,-500.0,0.00019726,2]
[389114174,1759582258240,-863.73,0.00019726,2]
[389114176,1759582258249,-580.2,0.00019726,2]
[389114178,1759582258258,-500.0,0.00019726,2]
[389114180,1759582258268,-500.0,0.00019726,2]
[389114182,1759582258278,-500.0,0.00019726,2]
[389114184,1759582258288,-500.0,0.00019726,2]
[389114186,1759582258297,-500.0,0.00019726,2]
[389114188,1759582258306,-500.0,0.00019726,2]
[389114189,1759582258316,-500.0,0.00019726,2]
[389114191,1759582258326,-500.0,0.00019726,2]
[389114193,1759582258335,-1170.5,0.00019726,2]
[389114195,1759582258344,-500.0,0.00019726,2]
[389114197,1759582258354,-500.0,0.00019726,2]
[389114199,1759582258363,-500.0,0.00019726,2]
[389114201,1759582258372,-959.77,0.00019726,2]
[389114203,1759582258381,-966.58,0.00019726,2]
[389114205,1759582258390,-500.0,0.00019726,2]
[389114207,1759582258399,-500.0,0.00019726,2]
[389114209,1759582258409,-500.0,0.00019726,2]
[389114211,1759582258418,-500.0,0.00019726,2]
[389114213,1759582258427,-500.0,0.00019726,2]
[389114215,1759582258436,-654.0,0.00019726,2]
[389114217,1759582258445,-2612.01,0.00019726,2]
[389114219,1759582258454,-500.0,0.00019726,2]
[389114221,1759582258463,-500.0,0.00019726,2]
[389114223,1759582258473,-810.31,0.00019726,2]
[389114225,1759582258483,-500.0,0.00019726,2]
[389114227,1759582258495,-500.0,0.00019726,2]
[389114229,1759582258505,-500.0,0.00019726,2]
[389114231,1759582258515,-500.0,0.00019726,2]
[389114233,1759582258524,-696.23,0.00019726,2]
[389114235,1759582258533,-500.0,0.00019726,2]
[389114237,1759582258542,-500.0,0.00019726,2]
[389114239,1759582258551,-500.0,0.00019726,2]
[389114241,1759582258560,-500.0,0.00019726,2]
[389114243,1759582258569,-500.0,0.00019726,2]
[389114245,1759582258578,-612.81,0.00019726,2]
[389114247,1759582258587,-1207.67,0.00019726,2]
[389114249,1759582258596,-500.0,0.00019726,2]
[389114251,1759582258605,-500.0,0.00019726,2]
[389114253,1759582258614,-500.0,0.00019726,2]
[389114255,1759582258623,-500.0,0.00019726,2]
[389114257,1759582258632,-1881.62,0.00019726,2]
[389114259,1759582258641,-426.29412645,0.00019726,2]
[389114261,1759582258651,-804.82,0.00019726,2]
[389114263,1759582258660,-500.0,0.00019726,2]
[389114265,1759582258669,-5135.51,0.00019726,2]
[389114267,1759582258678,-500.0,0.00019726,2]
[389114269,1759582258687,-944.8,0.00019726,2]
[389114271,1759582258699,-500.0,0.00019726,2]
[389114273,1759582258709,-307.15421767,0.00019726,2]
[389114274,1759582258718,-1075.58,0.00019726,2]
[389114276,1759582258727,-465.806335,0.00019726,2]
[389114278,1759582258737,-2716.88,0.00019726,2]
[389114280,1759582258746,-465.806335,0.00019726,2]
[389114282,1759582258755,-500.0,0.00019726,2]
[389114284,1759582258764,-465.806335,0.00019726,2]
[389114286,1759582258774,-1462.49,0.00019726,2]
[389114288,1759582258783,-465.806335,0.00019726,2]
[389114290,1759582258792,-786.08,0.00019726,2]
[389114292,1759582258801,-151.0,0.00019726,2]
[389114294,1759582258810,-407.286452,0.00019726,2]
[389114296,1759582258820,-407.286452,0.00019726,2]
[389114298,1759582258829,-500.0,0.00019726,2]
[389114300,1759582258838,-407.286452,0.00019726,2]
[389114302,1759582258847,-500.0,0.00019726,2]
[389114304,1759582258856,-407.286452,0.00019726,2]
[389114306,1759582258865,-190.54917175,0.00019726,2]
[389114308,1759582258875,-500.0,0.00019726,2]
[389114310,1759582258884,-151.0,0.00019726,2]
[389114312,1759582258893,-500.0,0.00019726,2]
[389114314,1759582258902,-511.28,0.00019726,2]
[389114316,1759582258911,-151.0,0.00019726,2]
[389114318,1759582258921,-500.0,0.00019726,2]
[389114320,1759582258930,-1047.68,0.00019726,2]
[389114322,1759582258939,-500.0,0.00019726,2]
[389114324,1759582258948,-1301.49,0.00019726,2]
[389114326,1759582258957,-841.67,0.00019726,2]
[389114328,1759582258967,-500.0,0.00019726,2]
[389114330,1759582258976,-970.1,0.00019726,2]
[389114332,1759582258985,-589.32323707,0.00019726,2]
[389114334,1759582258994,-500.0,0.00019726,2]
[389114336,1759582259003,-531.12,0.00019726,2]
[389114338,1759582259013,-2278.95,0.00019726,2]
[389114340,1759582259022,-3686.13,0.00019726,2]
[389114342,1759582259031,-500.0,0.00019726,2]
[389114344,1759582259039,-500.0,0.00019726,2]
[389114346,1759582259048,-585.68,0.00019726,2]
[389114347,1759582259057,-312.228017,0.00019726,2]
[389114349,1759582259066,-312.228017,0.00019726,2]
[389114351,1759582259075,-2796.07,0.00019726,2]
[389114353,1759582259084,-312.228017,0.00019726,2]
[389114355,1759582259093,-1336.609448,0.00019726,2]
[389114357,1759582259103,-1219.25,0.00019726,2]
[389114359,1759582259112,-312.228017,0.00019726,2]
[389114361,1759582259121,-1336.609448,0.00019726,2]
[389114363,1759582259130,-500.0,0.00019726,2]
[389114365,1759582259139,-1336.609448,0.00019726,2]
[389114367,1759582259148,-500.0,0.00019726,2]
[389114369,1759582259158,-1830.54,0.00019726,2]
[389114371,1759582259167,-1336.609448,0.00019726,2]
[389114373,1759582259176,-500.0,0.00019726,2]
[389114375,1759582259186,-500.0,0.00019726,2]
[389114377,1759582259195,-500.0,0.00019726,2]
[389114379,1759582259204,-500.0,0.00019726,2]
[389114381,1759582259213,-151.0,0.00019726,2]
[389114383,1759582259222,-4461.67,0.00019726,2]
[389114385,1759582259232,-500.0,0.00019726,2]
[389114387,1759582259241,-500.0,0.00019726,2]
[389114389,1759582259250,-622.76,0.00019726,2]
[389114391,1759582259259,-1711.92,0.00019726,2]
[389114393,1759582259268,-492.7234515,0.00019726,2]
[389114395,1759582259277,-500.0,0.00019726,2]
[389114397,1759582259286,-500.0,0.00019726,2]
[389114399,1759582259296,-759.509332,0.00019726,2]
[389114401,1759582259306,-1288.58,0.00019726,2]
[389114403,1759582259314,-759.509332,0.00019726,2]
[389114405,1759582259323,-151.0,0.00019726,2]
[389114407,1759582259333,-151.0,0.00019726,2]
[389114409,1759582259342,-500.0,0.00019726,2]
[389114411,1759582259351,-759.509332,0.00019726,2]
[389114413,1759582259361,-898.81,0.00019726,2]
[389114415,1759582259370,-151.0,0.00019726,2]
[389114417,1759582259379,-759.509332,0.00019726,2]
[389114419,1759582259388,-500.0,0.00019726,2]
[389114421,1759582259397,-151.0,0.00019726,2]
[389114423,1759582259406,-6171.37,0.00019726,2]
[389114425,1759582259415,-602.16151024,0.00019732,2]
[389114427,1759582259424,-300.703,0.00019761,2]
[389114429,1759582259434,-500.0,0.0001979,2]
[389114431,1759582259442,-500.0,0.0001979,2]
[389114433,1759582259451,-602.1152116,0.000198,2]
[389114435,1759582259460,-7932.83291704,0.000199,2]
[389114437,1759582259469,-168.0,0.00019909,2]
[389114439,1759582259478,-168.0,0.00019937,2]
[389114441,1759582259487,-500.0,0.00019962,2]
[389114443,1759582259495,-500.0,0.00019973,2]
[389114444,1759582259504,-500.0,0.00019973,2]
[389114446,1759582259515,-500.0,0.00019973,2]
[389114448,1759582259525,-500.0,0.00019973,2]
[389114450,1759582259534,-500.0,0.00019973,2]
[389114452,1759582259543,-1680.0,0.00019991,2]
[389114454,1759582259552,-6868.7,0.0002,2]
[389114456,1759582259561,-500.0,0.0002,2]
[389114458,1759582259570,-5000.0,0.0002,2]
[389114460,1759582259580,-5069.0,0.0002,2]
[389114463,1759582259590,-1129.15,0.0002,2]
[389114465,1759582259599,-5000.0,0.0002,2]
[389114466,1759582259610,-500.0,0.0002,2]
[389114469,1759582259621,-500.0,0.0002,2]
[389114470,1759582259630,-500.0,0.0002,2]
[389114472,1759582259639,-500.0,0.0002,2]
[389114474,1759582259648,-500.0,0.0002,2]
[389114476,1759582259657,-500.0,0.0002,2]
[389114478,1759582259666,-500.0,0.0002,2]
[389114480,1759582259676,-151.0,0.0002,2]
[389114482,1759582259685,-500.0,0.0002,2]
[389114484,1759582259694,-500.0,0.0002,2]
[389114486,1759582259708,-635.33,0.0002,2]
[389114488,1759582259717,-151.0,0.0002,2]
[389114490,1759582259726,-151.0,0.0002,2]
[389114492,1759582259735,-178.29825,0.0002,2]
[389114494,1759582259745,-552.57,0.0002,2]
[389114496,1759582259754,-151.0,0.0002,2]
[389114498,1759582259763,-192.512455,0.0002,2]
[389114516,1759582259912,-151.0,0.0002,2]
[389114518,1759582259923,-151.0,0.0002,2]
[389114520,1759582259932,-151.0,0.0002,2]
[389114522,1759582259941,-151.0,0.0002,2]
[389114524,1759582259952,-151.0,0.0002,2]
[389114526,1759582259961,-734.82,0.0002,2]
[389114528,1759582259970,-151.0,0.0002,2]
[389114530,1759582259979,-151.0,0.0002,2]
[389114532,1759582259988,-151.0,0.0002,2]
[389114534,1759582259998,-193.822383,0.0002,2]
[389114536,1759582260008,-500.0,0.0002,2]
[389114538,1759582260017,-500.0,0.0002,2]
[389114540,1759582260027,-500.0,0.0002,2]
[389114542,1759582260036,-563.89,0.0002,2]
[389114544,1759582260045,-151.765661,0.0002,2]
[389114546,1759582260055,-693.1,0.0002,2]
[389114548,1759582260064,-500.0,0.0002,2]
[389114550,1759582260074,-151.0,0.0002,2]
[389114552,1759582260083,-553.96,0.0002,2]
[389114554,1759582260092,-151.0,0.0002,2]
[389114556,1759582260101,-667.64,0.0002,2]
[389114558,1759582260110,-151.0,0.0002,2]
[389114560,1759582260119,-152.149961,0.0002,2]
[389114562,1759582260128,-151.0,0.0002,2]
[389114564,1759582260138,-500.0,0.0002,2]
[389114566,1759582260148,-151.0,0.0002,2]
[389114568,1759582260157,-151.0,0.0002,2]
[389114570,1759582260167,-151.0,0.0002,2]
[389114572,1759582260176,-500.0,0.0002,2]
[389114574,1759582260186,-927.47,0.0002,2]
[389114576,1759582260195,-500.0,0.0002,2]
[389114578,1759582260204,-151.0,0.0002,2]
[389114580,1759582260213,-500.0,0.0002,2]
[389114582,1759582260223,-151.0,0.0002,2]
[389114584,1759582260232,-882.4,0.0002,2]
[389114586,1759582260242,-500.0,0.0002,2]
[389114588,1759582260252,-151.0,0.0002,2]
[389114590,1759582260261,-500.0,0.0002,2]
[389114592,1759582260270,-500.0,0.0002,2]
[389114593,1759582260279,-500.0,0.0002,2]
[389114596,1759582260290,-899.57,0.0002,2]
[389114598,1759582260300,-228.04,0.0002,2]
[389114600,1759582260310,-595.42870483,0.0002,2]
[389114602,1759582260320,-500.0,0.0002,2]
[389114604,1759582260329,-500.0,0.0002,2]
[389114605,1759582260338,-500.0,0.0002,2]
[389114608,1759582260348,-2623.04,0.0002,2]
[389114610,1759582260357,-500.0,0.0002,2]
[389114612,1759582260366,-500.0,0.0002,2]
[389114613,1759582260376,-640.83,0.0002,2]
[389114615,1759582260386,-584.45026997,0.0002,2]
[389114617,1759582260397,-500.0,0.0002,2]
[389114619,1759582260407,-151.0,0.0002,2]
[389114621,1759582260417,-151.0,0.0002,2]
[389114623,1759582260425,-151.0,0.0002,2]
[389114625,1759582260434,-483.56805913,0.0002,2]
[389114627,1759582260445,-151.0,0.0002,2]
[389114629,1759582260453,-151.0,0.0002,2]
[389114631,1759582260462,-1310.74,0.0002,2]
[389114632,1759582260472,-151.0,0.0002,2]
[389114633,1759582260481,-151.0,0.0002,2]
[389114634,1759582260490,-166.435157,0.0002,2]
[389114635,1759582260499,-151.0,0.0002,2]
[389114636,1759582260508,-151.0,0.0002,2]
[389114637,1759582260518,-749.84,0.0002,2]
[389114638,1759582260527,-151.0,0.0002,2]
[389114640,1759582260536,-500.0,0.0002,2]
[389114642,1759582260545,-151.0,0.0002,2]
[389114644,1759582260553,-2382.25,0.0002,2]
[389114646,1759582260562,-500.0,0.0002,2]
[389114648,1759582260572,-707.87,0.0002,2]
[389114650,1759582260581,-1283.05,0.0002,2]
[389114652,1759582260590,-500.0,0.0002,2]
[389114654,1759582260599,-500.0,0.0002,2]
[389114656,1759582260607,-876.9,0.0002,2]
[389114658,1759582260617,-151.0,0.0002,2]
[389114660,1759582260626,-904.32,0.0002,2]
[389114662,1759582260635,-151.0,0.0002,2]
[389114664,1759582260645,-500.0,0.0002,2]
[389114666,1759582260654,-500.0,0.0002,2]
[389114668,1759582260666,-185.971397,0.0002,2]
[389114670,1759582260675,-500.0,0.0002,2]
[389114672,1759582260687,-185.971397,0.0002,2]
[389114674,1759582260697,-185.971397,0.0002,2]
[389114676,1759582260709,-542.11,0.0002,2]
[389114678,1759582260718,-185.971397,0.0002,2]
[389114680,1759582260728,-151.0,0.0002,2]
[389114682,1759582260738,-151.0,0.0002,2]
[389114684,1759582260749,-151.0,0.0002,2]
[389114686,1759582260758,-500.0,0.0002,2]
[389114688,1759582260768,-500.0,0.0002,2]
[389114690,1759582260779,-271.261225,0.0002,2]
[389114692,1759582260790,-500.0,0.0002,2]
[389114694,1759582260799,-536.72147794,0.0002,2]
[389114696,1759582260808,-271.261225,0.0002,2]
[389114698,1759582260818,-271.261225,0.0002,2]
[389114700,1759582260827,-500.0,0.0002,2]
[389114702,1759582260836,-271.261225,0.0002,2]
[389114704,1759582260846,-151.0,0.0002,2]
[389114706,1759582260855,-151.0,0.0002,2]
[389114708,1759582260865,-1143.82,0.0002,2]
[389114710,1759582260875,-151.0,0.0002,2]
[389114712,1759582260885,-151.0,0.0002,2]
[389114714,1759582260894,-151.0,0.0002,2]
[389114716,1759582260903,-1168.54,0.0002,2]
[389114718,1759582260913,-500.0,0.0002,2]
[389114720,1759582260922,-500.0,0.0002,2]
[389114722,1759582260931,-168.498964,0.0002,2]
[389114724,1759582260940,-500.92,0.0002,2]
[389114726,1759582260950,-500.0,0.0002,2]
[389114729,1759582260960,-663.79,0.0002,2]
[389114730,1759582260970,-500.0,0.0002,2]
[389114733,1759582260979,-2928.1,0.0002,2]
[389114735,1759582260988,-151.0,0.0002,2]
[389114737,1759582260998,-753.15,0.0002,2]
[389114739,1759582261007,-1528.06,0.0002,2]
[389114740,1759582261017,-500.0,0.0002,2]
[389114743,1759582261026,-500.0,0.0002,2]
[389114744,1759582261036,-1221.58,0.0002,2]
[389114747,1759582261047,-500.0,0.0002,2]
[389114748,1759582261057,-500.0,0.0002,2]
[389114751,1759582261067,-151.0,0.0002,2]
[389114753,1759582261078,-520.37,0.0002,2]
[389114754,1759582261088,-562.82,0.0002,2]
[389114756,1759582261097,-639.50998045,0.0002,2]
[389114758,1759582261106,-500.0,0.0002,2]
[389114760,1759582261116,-151.0,0.0002,2]
[389114762,1759582261125,-500.0,0.0002,2]
[389114764,1759582261134,-151.0,0.0002,2]
[389114766,1759582261143,-500.0,0.0002,2]
[389114768,1759582261152,-500.0,0.0002,2]
[389114770,1759582261161,-151.0,0.0002,2]
[389114772,1759582261170,-151.0,0.0002,2]
[389114774,1759582261179,-586.62,0.0002,2]
[389114776,1759582261190,-1226.46,0.0002,2]
[389114779,1759582261201,-151.0,0.0002,2]
[389114781,1759582261211,-500.0,0.0002,2]
[389114783,1759582261222,-500.0,0.0002,2]
[389114785,1759582261231,-758.10456,0.0002,2]
[389114787,1759582261240,-758.10456,0.0002,2]
[389114789,1759582261250,-758.10456,0.0002,2]
[389114790,1759582261259,-758.10456,0.0002,2]
[389114792,1759582261268,-500.0,0.0002,2]
[389114794,1759582261278,-500.0,0.0002,2]
[389114797,1759582261287,-1546.54,0.0002,2]
[389114799,1759582261298,-500.0,0.0002,2]
[389114800,1759582261308,-151.0,0.0002,2]
[389114803,1759582261318,-640.45,0.0002,2]
[389114804,1759582261328,-500.0,0.0002,2]
[389114807,1759582261337,-151.0,0.0002,2]
[389114808,1759582261347,-500.0,0.0002,2]
[389114811,1759582261357,-151.0,0.0002,2]
[389114813,1759582261367,-151.0,0.0002,2]
[389114814,1759582261377,-500.0,0.0002,2]
[389114817,1759582261386,-151.0,0.0002,2]
[389114819,1759582261396,-500.0,0.0002,2]
[389114821,1759582261406,-151.0,0.0002,2]
[389114823,1759582261415,-621.50103138,0.0002,2]
[389114824,1759582261424,-514.22,0.0002,2]
[389114826,1759582261433,-500.0,0.0002,2]
[389114828,1759582261442,-577.75,0.0002,2]
[389114830,1759582261451,-151.0,0.0002,2]
[389114832,1759582261460,-151.0,0.0002,2]
[389114834,1759582261469,-165.579866,0.0002,2]
[389114836,1759582261478,-236.501964,0.0002,2]
[389114838,1759582261487,-165.579866,0.0002,2]
[389114840,1759582261496,-621.59,0.0002,2]
[389114842,1759582261506,-236.501964,0.0002,2]
[389114844,1759582261515,-165.579866,0.0002,2]
[389114846,1759582261524,-236.501964,0.0002,2]
[389114848,1759582261532,-165.579866,0.0002,2]
[389114850,1759582261541,-236.501964,0.0002,2]
[389114852,1759582261550,-878.25,0.0002,2]
[389114854,1759582261560,-500.0,0.0002,2]
[389114856,1759582261569,-532.16,0.0002,2]
[389114858,1759582261578,-500.0,0.0002,2]
[389114860,1759582261588,-151.0,0.0002,2]
[389114862,1759582261597,-500.0,0.0002,2]
[389114864,1759582261606,-151.0,0.0002,2]
[389114866,1759582261615,-151.0,0.0002,2]
[389114868,1759582261624,-151.0,0.0002,2]
[389114870,1759582261633,-500.0,0.0002,2]
[389114872,1759582261642,-500.0,0.0002,2]
[389114874,1759582261651,-500.0,0.0002,2]
[389114876,1759582261659,-2202.03,0.0002,2]
[389114878,1759582261670,-591.53,0.0002,2]
[389114880,1759582261679,-518.58,0.0002,2]
[389114882,1759582261689,-1787.61,0.0002,2]
[389114884,1759582261701,-500.0,0.0002,2]
[389114886,1759582261710,-636.3,0.0002,2]
[389114888,1759582261719,-151.0,0.0002,2]
[389114890,1759582261729,-151.0,0.0002,2]
[389114892,1759582261738,-657.33,0.0002,2]
[389114894,1759582261747,-500.0,0.0002,2]
[389114896,1759582261756,-151.0,0.0002,2]
[389114898,1759582261766,-335.81389104,0.0002,2]
[389114900,1759582261775,-500.0,0.0002,2]
[389114902,1759582261784,-500.0,0.0002,2]
[389114904,1759582261793,-151.0,0.0002,2]
[389114906,1759582261803,-151.0,0.0002,2]
[389114908,1759582261812,-500.0,0.0002,2]
[389114910,1759582261821,-500.0,0.0002,2]
[389114912,1759582261830,-793.93,0.0002,2]
[389114914,1759582261839,-377.804729,0.0002,2]
[389114916,1759582261848,-377.804729,0.0002,2]
[389114918,1759582261857,-500.0,0.0002,2]
[389114920,1759582261866,-377.804729,0.0002,2]
[389114922,1759582261875,-2432.08,0.0002,2]
[389114924,1759582261883,-500.0,0.0002,2]
[389114926,1759582261892,-421.910071,0.0002,2]